Cogmind - Beta 10.2 @@@ ROGUE MODE // 2021.04.18 @ 22:12:55 Player: travv0 Result: Destroyed by G-34 Mercenary with Small Laser Performance ------------- Evolutions (0) 0 Regions Visited (2) 400 Robots Destroyed (8) 40 Value Destroyed (253) 253 Prototype IDs (0) 0 Alien Tech Used (0) 0 Bonus (25) 25 TOTAL SCORE: 718 Bonus ------- Follower Combat Kills 25 Cogmind --------- Core Integrity 0/250 Matter 273/300 Energy 100/100 System Corruption 0% Temperature Cool (6) Movement Core (100) Ox1 Location -10/Mines Parts ------- > --- POWER (1) -------- (None) > --- PROPULSION (2) --- (None) > --- UTILITY (2) ------ Small Storage Unit Power Shielding > --- WEAPON (2) ------- (None) > --- INVENTORY (6) ---- Light Ion Engine Light Ion Engine Heat Sink Heat Sink Mining Laser Peak State ------------ > --- POWER ------------ Ion Engine > --- PROPULSION ------- Aluminum Leg Aluminum Leg > --- UTILITY ---------- Small Storage Unit Power Shielding > --- WEAPON ----------- Assault Rifle Light Assault Rifle > --- INVENTORY -------- Light Ion Engine Light Ion Engine Mining Laser [Rating: 7] Favorites ----------- Power Ion Engine Engine Ion Engine Propulsion Aluminum Leg Leg Aluminum Leg Wheel Wheel Utility Small Storage Unit Storage Small Storage Unit Protection Power Shielding Weapon Assault Rifle Ballistic Gun Assault Rifle Build | -11 -10 -10 ------- Run | Scr Mat Min Slots Evolved . | . . . Power . | . . . Propulsion . | . . . Utility . | . . . Weapon . | . . . Parts Attached 13 | 6 5 2 Power 3 | 1 2 . Engine 3 | 1 2 . Core . | . . . Reactor . | . . . Propulsion 5 | 2 1 2 Treads . | . . . Leg 3 | 2 1 . Wheel 2 | . . 2 Hover . | . . . Flight . | . . . Utility 2 | 1 1 . Device . | . . . Storage 1 | 1 . . Processor . | . . . Hackware . | . . . Protection 1 | . 1 . Artifact . | . . . Weapon 3 | 2 1 . Energy Gun . | . . . Energy Cannon . | . . . Ballistic Gun 3 | 2 1 . Ballistic Cannon . | . . . Launcher . | . . . Special Weapon . | . . . Impact Weapon . | . . . Slashing Weapon . | . . . Piercing Weapon . | . . . Special Melee Weapon . | . . . Unidentified Prototypes . | . . . Parts Lost 6 | . 1 5 Power 1 | . . 1 Propulsion 3 | . . 3 Utility . | . . . Weapon 2 | . 1 1 Highest Loss Streak 5 | . 1 5 Average Slot Usage (%) 83 | . 86 82 Engine 13 | . 13 13 Leg 26 | . 27 25 Storage 14 | . 14 14 Protection 11 | . 4 14 Ballistic Gun 16 | . 25 12 Naked Turns . | . . . Heaviest Build 13 | 10 13 12 Greatest Support 20 | 20 20 20 Greatest Overweight (x) 1 | . . 1 Average Overweight (x) . | . . . Largest Inventory Capacity 6 | 6 6 6 Average Capacity 5 | 5 6 6 Most Carried 6 | 3 5 6 Average Carried 4 | 1 3 5 Final Capacity 6 | 6 6 6 Final Carried 5 | 1 5 5 Class Distribution -------------------- 100% | Mutant Dominant Class ---------------- Mutant | -10/Materials Mutant | -10/Mines Resources | -11 -10 -10 ----------- Run | Scr Mat Min Matter Collected 480 | 260 182 38 Remotely . | . . . Salvage Created 314 | . 300 14 Parts 17 | . 13 4 Haulers Intercepted . | . . . Recyclers Shooed . | . . . Parts Field Recycled . | . . . Retrieved Matter . | . . . Parts Self-Destructed . | . . . Prevented . | . . . Kills | -11 -10 -10 ------- Run | Scr Mat Min Combat Hostiles Destroyed 6 | . 6 . Guns 6 | . 6 . Classes Destroyed 3 | . 2 1 Tunneler 1 | . . 1 Watcher 1 | . 1 . Grunt 6 | . 6 . Best Kill Streak 3 | . 3 1 Combat Bots Only 3 | . 3 . Max Kills in Single Turn 1 | . 1 1 Gunslinging . | . . . Exploded . | . . . Melee . | . . . Uniques/NPCs Destroyed . | . . . Combat | -11 -10 -10 -------- Run | Scr Mat Min Damage Taken 800 | . 507 293 Core 259 | . 149 110 Absorbed by Shields . | . . . Core Remaining (%) 100 | 100 . . Volleys Fired 62 | . 36 26 Largest 2 | . 2 1 Hottest 40 | . 40 20 Shots Fired 91 | . 65 26 Gun 91 | . 65 26 Cannon . | . . . Launcher . | . . . Special . | . . . Kinetic 91 | . 65 26 Thermal . | . . . Explosive . | . . . Electromagnetic . | . . . Robot Hit Streak 8 | . 8 3 Robot Miss Streak 2 | . 2 2 Penetration Max . | . . . Secondary Targets 1 | . 1 . Max Gunslinging Chain 1 | . 1 . Shots Hit Robots 53 | . 43 10 Core Hits 19 | . 17 2 Critical Hits . | . . . Critical Kills . | . . . Critical Parts Destroyed . | . . . Melee Attacks . | . . . Impact . | . . . Slashing . | . . . Piercing . | . . . Sneak Attacks . | . . . Combat Hostiles . | . . . Follow-up Attacks . | . . . Damage Inflicted 386 | . 369 17 Guns 379 | . 369 10 Cannons . | . . . Explosions . | . . . Melee . | . . . Ramming 7 | . . 7 Kinetic 379 | . 369 10 Thermal . | . . . Explosive . | . . . Electromagnetic . | . . . Impact . | . . . Slashing . | . . . Piercing . | . . . Highest Corruption . | . . . Average Corruption . | . . . Corruption Purged . | . . . Overload Shots . | . . . Overflow Damage . | . . . Projectiles . | . . . Explosions . | . . . Melee . | . . . Knockbacks . | . . . Impact . | . . . Kinetic . | . . . Secondary . | . . . Self-Inflicted Damage 3 | . . 3 Shots . | . . . Rammed 3 | . . 3 Targets Rammed 3 | . . 3 Kicked . | . . . Crushed . | . . . Highest Temperature 18 | . 18 . Average Temperature 7 | . 7 . Received Heat Transfer 447 | . 291 156 Siege Activations . | . . . Robots Corrupted . | . . . Combat Hostiles . | . . . Parts Fried . | . . . Impact Corruptions . | . . . Robots Melted . | . . . Combat Hostiles . | . . . Parts Melted . | . . . Heat Transferred . | . . . Parts Sabotaged . | . . . Parts Stolen . | . . . Parts Stripped . | . . . Power Chain Reactions . | . . . Missiles Intercepted . | . . . Alert | -11 -10 -10 ------- Run | Scr Mat Min Peak Influence 197 | . 197 76 Initial 76 | . . 76 Average 37 | . 64 30 Maximum Alert Level . | . . . Low Security (%) 100 | 100 100 100 Level 1 . | . . . Level 2 . | . . . Level 3 . | . . . Level 4 . | . . . Level 5 . | . . . High Security . | . . . Max Security . | . . . Squads Dispatched 1 | . 1 . Investigation . | . . . Extermination . | . . . Reinforcement 1 | . 1 . Assault . | . . . Garrison . | . . . Intercept . | . . . Construction Impeded . | . . . Haulers Reinforced . | . . . Stealth | -11 -10 -10 --------- Run | Scr Mat Min Distress Signals 8 | . 3 5 Communications Jammed . | . . . Distress Signals . | . . . Times Spotted 17 | . 13 4 Peak Tracking Total 4 | . 4 4 Tactical Retreats 1 | . 1 . Traps | -11 -10 -10 ------- Run | Scr Mat Min Traps Triggered 2 | . 2 . Indirectly . | . . . Trap Hack Attempts . | . . . Triggered . | . . . Disarmed . | . . . Reprogrammed . | . . . Reused . | . . . Traps Extracted . | . . . Installed . | . . . Triggered . | . . . Machines | -11 -10 -10 ---------- Run | Scr Mat Min Machines Disabled . | . . . Max in Single Turn . | . . . Machines Sabotaged . | . . . Garrisons Compromised . | . . . Overloaded Fab Kills . | . . . Fab Network Shutdowns . | . . . Hacking | -11 -10 -10 --------- Run | Scr Mat Min Machines Accessed 1 | . 1 . Terminals 1 | . 1 . Fabricators . | . . . Repair Stations . | . . . Recycling Units . | . . . Scanalyzers . | . . . Garrison Access . | . . . Total Hacks 1 | . 1 . Successful . | . . . Failed 1 | . 1 . Catastrophic . | . . . Database Lockouts . | . . . Manual . | . . . Terminals 1 | . 1 . Fabricators . | . . . Repair Stations . | . . . Recycling Units . | . . . Scanalyzers . | . . . Garrison Access . | . . . Terminal Hacks . | . . . Fabricator Hacks . | . . . Repair Station Hacks . | . . . Recycling Unit Hacks . | . . . Scanalyzer . | . . . Garrison Access Hacks . | . . . Unauthorized Hacks . | . . . Terminals . | . . . Fabricators . | . . . Repair Stations . | . . . Recycling Units . | . . . Scanalyzers . | . . . Garrison Access . | . . . Data Cores Recovered . | . . . Used . | . . . Hacking Detections 1 | . 1 . Full Trace Events . | . . . Feedback Events . | . . . Feedback Blocked . | . . . Robot Schematics Acquired . | . . . Robots Built . | . . . Matter . | . . . Time . | . . . Total Robot Build Rating . | . . . Part Schematics Acquired . | . . . Parts Built . | . . . Matter . | . . . Time . | . . . Total Part Build Rating . | . . . Parts Repaired . | . . . Time . | . . . Parts Recycled . | . . . Recycled Matter . | . . . Retrieved Matter . | . . . Retrieved Components . | . . . Parts Scanalyzed . | . . . Part Schematics Acquired . | . . . Parts Damaged . | . . . Bothacking | -11 -10 -10 ------------ Run | Scr Mat Min Used RIF Installer . | . . . Robots Hacked . | . . . Non-combat . | . . . Combat . | . . . Robot Hacks Applied . | . . . Relay Couplers Released . | . . . Robots Rewired . | . . . Allies Hacked . | . . . Hacks Repelled . | . . . Allies | -11 -10 -10 -------- Run | Scr Mat Min Total Allies 2 | . . 2 Largest Group 2 | . . 2 Highest-Rated Group 42 | . . 42 Highest-Rated Ally 31 | . . 31 Total Orders . | . . . Ally Attacks 1 | . . 1 Total Damage 20 | . . 20 Kills 1 | . . 1 Allies Corrupted . | . . . Allies Melted . | . . . Intel | -11 -10 -10 ------- Run | Scr Mat Min Robot Analysis Total . | . . . Derelict Logs Recovered . | . . . Drone Launches . | . . . Drone Recoveries . | . . . Exploration | -11 -10 -10 ------------- Run | Scr Mat Min Turns Passed 1406 | 62 350 994 Spaces Moved 460 | 51 202 207 Core 27 | 17 . 10 Treads . | . . . Legs 361 | 34 202 125 Wheels 72 | . . 72 Hover . | . . . Flight . | . . . Fastest Speed 50 | 50 120 80 Average Speed 110 | 96 120 105 Slowest Speed 120 | 120 120 120 Overloaded Moves . | . . . Propulsion Burnouts . | . . . Robots Hopped . | . . . Cave-ins Triggered . | . . . Exploration Rate (%) 25 | 3 30 44 Regions Visited 2 Branch Regions 1 Pre-discovered Areas . | . . . Known Exits Taken . | . . . Unknown Exits Taken 2 | 1 1 . Scrap Searched . | . . . Spaces Dug . | . . . Terrain Destroyed . | . . . Melee . | . . . Projectile . | . . . AOE . | . . . Terrain Rammed . | . . . Walls Destroyed . | . . . Machines Disabled . | . . . Actions | -11 -10 -10 --------- Run | Scr Mat Min Total 1270 | 63 250 957 Wait 717 | . . 717 Move 458 | 50 201 207 Hop . | . . . Pick Up 16 | 7 8 1 Fast Attach 1 | . . 1 Attach 11 | 6 4 1 Detach . | . . . Swap 1 | . 1 . Drop 1 | . . 1 Fire 62 | . 36 26 Melee . | . . . Ram 3 | . . 3 Kick . | . . . Crush . | . . . Escape Stasis . | . . . Rewire . | . . . Trap . | . . . Miscellaneous . | . . . Route ------- -11/Scrapyard -10/Materials -10/Mines History --------- Turn | Location | Event 6 | -11/Scrapyard | Discovered new exit (range 15) 63 | -11/Scrapyard | Entered Materials 315 | -10/Materials | Build established: Mutant 359 | -10/Materials | Discovered new exit (range 9) 363 | -10/Materials | Core integrity fell below 50% 413 | -10/Materials | Entered Mines 551 | -10/Mines | Excavation squad dispatched 551 | -10/Mines | A large section of the Mines collapsed 801 | -10/Mines | Excavation squad dispatched 1051 | -10/Mines | Excavation squad dispatched 1301 | -10/Mines | Excavation squad dispatched 1358 | -10/Mines | Core integrity fell below 20% 1407 | -10/Mines | Destroyed by G-34 Mercenary with Small Laser Last Messages --------------- escorted excavation squad. 01051_ ALERT: Derelict activity in mines confirmed. Dispatching additional escorted excavation squad. 01301_ ALERT: Derelict activity in mines confirmed. Dispatching additional escorted excavation squad. 01301_ T-07 Excavator is excavating. 01304_ T-07 Excavator destroyed. 01326_ Aluminum Leg destroyed. 01328_ Assault Rifle destroyed. 01329_ Acquired 14 matter. 01331_ Acquired Wheel. 01335_ Dropped Aluminum Leg. 01353_ Slammed into T-07 Excavator. 01353_ Ion Engine destroyed. 01369_ Wheel destroyed. 01392_ Slammed into K-01 Serf. 01393_ K-01 Serf sends out distress signal. 01396_ Slammed into G-34 Mercenary. 01397_ Wheel destroyed. 01406_ Acquired 24 matter. Map ----- +----------------------------------------------------+ | ?????????????????????????????????????????????????? | | ?????????????????????????????????????????????????? | | ????????????????????????????#####????????????????? | | ??????####?????????????????## ##???????????????? | | ??????# #?????????????????# ##??????????????? | | ?????## #?????????????????# ##?????????????? | | ?????# #?????????????????# ##????????????? | | ?????# #????????????###### #????????????? | | ?????# ##???????????# #????????????? | | ?????# ###?????????# #????????????? | | ?????# ##????????# ##### ##????????????? | | ?????### ##???????# #???## ###?????????????? | | ???????## ######### #????## #???????????????? | | ???????## #?????# #???????????????? | | ??????## ######### ##?????# #???????????????? | | ####### ###???????# #??????# #???????????????? | | ## ##?????????# #??????# ###?????????????? | | ####?####### ####???# #????? ??????? | | #???# #????? ??????? | | """" %###############g#???### #????? #?????? | | """" ######????????# #?????# #?????? ##???? | | """" %%?????????# #?????# #??????# ##??? | | #####??????????# #?????# #??????? ##?? | | ##????#?????????# #??#### #???????# #?? | | # ##?????# ????????# #?## #???????# #?? | | # ##?????# ????????#@### ######??# #?? | | # ##????# ???????# #### #?? | | #????# ##?????###### """ ## ##? | | #???## #?????????# """ ## | | ##???# ##???????# """ | | ## ##???#### #####???????## | | #### #????##"###"" #????????## | | ???## #????#" * #####????????# ## | | ????# #????## = !# ######???# #### ### | | ????# #????## ### #???## #??## ##?## | | ????# #???## #### ### #???## #???#####???? | | ????# #???# #??## ##?# ##### ##??????????? | | ????# #???# #???####??# ############ | | ????# #??##" #?????????# ## # | | ????# #??# " ##?????????###### # | | ????# #### #???????????????## ## | | ????# #????????????????##### #? | | ????# ##????????????????????## #### ##? | | ????##########??????????????????????#####??#####?? | | ?????????????????????????????????????????????????? | | ?????????????????????????????????????????????????? | | | | | | | | | +----------------------------------------------------+ Best States ------------- Heat Dissipation 25 Energy Generation 10 Energy Capacity 250 Matter Stores 300 Matter Capacity 300 Sight Range 16 Terrain Scan Density 10 Power Shielding 33 Evasion (%) 50 Item Schematics ----------------- None Robot Schematics ------------------ None Fabricated ------------ Nothing Alien Tech Used ----------------- None Achievements -------------- None Challenges ------------ None Game ------ Seed ReclamationMasterImmobilizer Manual? 0 Play Time 00:16:41 Cumulative 4.0 hours Start 2021.04.18 @ 22:00:25 End 2021.04.18 @ 22:12:55 Sessions 1 Manual Loads 0 Difficulty Rogue Special Mode None Game No. 6 Rogue 6 Adventurer 0 Explorer 0 Win Type - Total 0 Types 0/0/0/0/0/0/0/0/0 Lore% 3 Gallery% 8 Achievement% 9 Wizard Run 0 Options --------- ASCII 1 Keyboard 1 Movement Mouse Keybinds 0 Fullscreen 1 Font 36/Smallcaps Map View 76x50 Tactical HUD 1 Map Filters NONE Filters NONE Steam 1 RUN: f613cb7a-1a80-4da2-a063-836f81cfbc9a